[Event "Titled Tuesday Blitz June 28 Early 2022"]
[White "Samsonkin, Artiom"]
[Black "Aldokhin, Ivan"]
[WhiteFideId "13503111"]
[BlackFideId "24115720"]
[WhiteElo "2513"]
[BlackElo "2231"]
[Result "1-0"]
[Round "07"]
[TimeControl "180+1"]
[Date "2022.06.28"]
[WhiteClock "0:00:07"]
[BlackClock "0:00:01"]

1. d4 {[%clk 0:02:59]}  Nf6 {[%clk 0:02:05]} 2. Bf4 {[%clk 0:02:57]}  g6 {[%clk 0:02:05]} 3. Nc3 {[%clk 0:02:55]}  Bg7 {[%clk 0:02:05]} 4. e4 {[%clk 0:02:55]}  d6 {[%clk 0:02:06]} 5. Qd2 {[%clk 0:02:54]}  c6 {[%clk 0:02:05]} 6. h4 {[%clk 0:02:54]}  b5 {[%clk 0:02:02]} 7. a3 {[%clk 0:02:48]}  Nbd7 {[%clk 0:02:01]} 8. e5 {[%clk 0:02:27]}  Nh5 {[%clk 0:01:59]} 9. exd6 {[%clk 0:02:09]}  Nxf4 {[%clk 0:01:54]} 10. Qxf4 {[%clk 0:02:10]}  O-O {[%clk 0:01:44]} 11. h5 {[%clk 0:01:53]}  e5 {[%clk 0:01:41]} 12. dxe5 {[%clk 0:01:48]}  Bxe5 {[%clk 0:01:39]} 13. Qd2 {[%clk 0:01:49]}  Nf6 {[%clk 0:01:06]} 14. hxg6 {[%clk 0:01:42]}  fxg6 {[%clk 0:01:01]} 15. Rd1 {[%clk 0:01:12]}  Bg4 {[%clk 0:00:41]} 16. Be2 {[%clk 0:01:07]}  Qb6 {[%clk 0:00:20]} 17. Bxg4 {[%clk 0:00:59]}  Nxg4 {[%clk 0:00:17]} 18. Nf3 {[%clk 0:01:00]}  Bg3 {[%clk 0:00:10]} 19. O-O {[%clk 0:00:28]}  Rad8 {[%clk 0:00:08]} 20. Ne4 {[%clk 0:00:26]}  Bf4 {[%clk 0:00:07]} 21. Qe2 {[%clk 0:00:25]}  Rfe8 {[%clk 0:00:04]} 22. d7 {[%clk 0:00:23]}  Re7 {[%clk 0:00:04]} 23. Nf6+ {[%clk 0:00:23]}  Kf7 {[%clk 0:00:02]} 24. Ne4 {[%clk 0:00:18]}  Nf6 {[%clk 0:00:02]} 25. Neg5+ {[%clk 0:00:17]}  Kf8 {[%clk 0:00:02]} 26. Ne6+ {[%clk 0:00:17]}  Kg8 {[%clk 0:00:02]} 27. Rfe1 {[%clk 0:00:16]}  Rdxd7 {[%clk 0:00:02]} 28. Rxd7 {[%clk 0:00:16]}  Nxd7 {[%clk 0:00:03]} 29. Qe4 {[%clk 0:00:16]}  Bd6 {[%clk 0:00:03]} 30. Qh4 {[%clk 0:00:16]}  Nc5 {[%clk 0:00:02]} 31. Nfg5 {[%clk 0:00:12]}  Nxe6 {[%clk 0:00:02]} 32. Rxe6 {[%clk 0:00:11]}  Qc7 {[%clk 0:00:03]} 33. Qe4 {[%clk 0:00:08]}  Rxe6 {[%clk 0:00:02]} 34. Qxe6+ {[%clk 0:00:08]}  Kg7 {[%clk 0:00:02]} 35. Ne4 {[%clk 0:00:08]}  Be5 {[%clk 0:00:02]} 36. c3 {[%clk 0:00:08]}  h6 {[%clk 0:00:02]} 37. g3 {[%clk 0:00:08]}  Kh7 {[%clk 0:00:01]} 38. Kg2 {[%clk 0:00:08]}  Bg7 {[%clk 0:00:01]} 39. Nd6 {[%clk 0:00:07]} 1-0


[Site "https://www.chess.com"]

[Event "Titled Tuesday Blitz June 28 Early 2022"]
[White "Shimanov, Aleksandr"]
[Black "Bortnyk, Olexandr"]
[WhiteFideId "4198603"]
[BlackFideId "14120828"]
[WhiteElo "2605"]
[BlackElo "2723"]
[Result "0-1"]
[Round "07"]
[TimeControl "180+1"]
[Date "2022.06.28"]
[WhiteClock "0:00:07"]
[BlackClock "0:00:09"]

1. b3 {[%clk 0:02:46]}  e5 {[%clk 0:02:58]} 2. Bb2 {[%clk 0:02:44]}  Nc6 {[%clk 0:02:56]} 3. c4 {[%clk 0:02:45]}  Nf6 {[%clk 0:02:51]} 4. Nf3 {[%clk 0:02:44]}  e4 {[%clk 0:02:49]} 5. Nd4 {[%clk 0:02:45]}  d5 {[%clk 0:02:43]} 6. Nxc6 {[%clk 0:02:42]}  bxc6 {[%clk 0:02:44]} 7. e3 {[%clk 0:02:38]}  Bd6 {[%clk 0:02:40]} 8. Be2 {[%clk 0:02:33]}  O-O {[%clk 0:02:36]} 9. O-O {[%clk 0:02:32]}  Qe7 {[%clk 0:02:32]} 10. d3 {[%clk 0:02:24]}  Bf5 {[%clk 0:02:14]} 11. dxe4 {[%clk 0:02:22]}  dxe4 {[%clk 0:02:01]} 12. Qc2 {[%clk 0:02:18]}  Rfe8 {[%clk 0:01:49]} 13. Nd2 {[%clk 0:02:16]}  Rad8 {[%clk 0:01:47]} 14. Rfd1 {[%clk 0:02:14]}  Ng4 {[%clk 0:01:41]} 15. Nf1 {[%clk 0:01:34]}  Qh4 {[%clk 0:01:25]} 16. Bxg4 {[%clk 0:01:22]}  Bxg4 {[%clk 0:01:26]} 17. Rd2 {[%clk 0:01:22]}  Qg5 {[%clk 0:01:01]} 18. Kh1 {[%clk 0:00:58]}  h5 {[%clk 0:00:54]} 19. Qc3 {[%clk 0:00:34]}  h4 {[%clk 0:00:35]} 20. h3 {[%clk 0:00:33]}  Bh5 {[%clk 0:00:36]} 21. Re1 {[%clk 0:00:17]}  Be5 {[%clk 0:00:32]} 22. Rxd8 {[%clk 0:00:13]}  Bxc3 {[%clk 0:00:20]} 23. Rxe8+ {[%clk 0:00:12]}  Kh7 {[%clk 0:00:21]} 24. Bxc3 {[%clk 0:00:13]}  Bf3 {[%clk 0:00:21]} 25. gxf3 {[%clk 0:00:10]}  exf3 {[%clk 0:00:22]} 26. Ng3 {[%clk 0:00:07]}  hxg3 {[%clk 0:00:23]} 27. Rg1 {[%clk 0:00:07]}  gxf2 {[%clk 0:00:13]} 28. Rxg5 {[%clk 0:00:07]}  f1=Q+ {[%clk 0:00:13]} 29. Kh2 {[%clk 0:00:08]}  f6 {[%clk 0:00:08]} 30. Rg1 {[%clk 0:00:07]}  Qe2+ {[%clk 0:00:08]} 31. Kh1 {[%clk 0:00:07]}  f2 {[%clk 0:00:09]} 0-1


[Site "https://www.chess.com"]

[Event "Titled Tuesday Blitz June 28 Early 2022"]
[White "Soham Kamotra"]
[Black "Dwilewicz, Katarzyna"]
[WhiteFideId "46647490"]
[BlackFideId "1148486"]
[WhiteElo "2082"]
[BlackElo "1907"]
[Result "1-0"]
[Round "07"]
[TimeControl "180+1"]
[Date "2022.06.28"]
[WhiteClock "0:00:09"]
[BlackClock "0:00:03"]

1. e4 {[%clk 0:03:00]}  c5 {[%clk 0:02:58]} 2. Nf3 {[%clk 0:03:01]}  d6 {[%clk 0:02:58]} 3. d4 {[%clk 0:03:01]}  cxd4 {[%clk 0:02:58]} 4. Nxd4 {[%clk 0:03:02]}  Nf6 {[%clk 0:02:58]} 5. f3 {[%clk 0:03:02]}  e5 {[%clk 0:02:57]} 6. Nb3 {[%clk 0:03:01]}  a5 {[%clk 0:02:57]} 7. Be3 {[%clk 0:02:59]}  a4 {[%clk 0:02:52]} 8. N3d2 {[%clk 0:02:58]}  Nc6 {[%clk 0:02:52]} 9. c4 {[%clk 0:02:58]}  Be7 {[%clk 0:02:51]} 10. Nc3 {[%clk 0:02:58]}  O-O {[%clk 0:02:50]} 11. Bd3 {[%clk 0:02:59]}  Be6 {[%clk 0:02:42]} 12. Nxa4 {[%clk 0:02:55]}  Nb4 {[%clk 0:02:15]} 13. Be2 {[%clk 0:02:50]}  Qa5 {[%clk 0:02:01]} 14. Nc3 {[%clk 0:02:45]}  Rfc8 {[%clk 0:01:55]} 15. O-O {[%clk 0:02:43]}  Nd7 {[%clk 0:01:51]} 16. a3 {[%clk 0:02:31]}  Nc6 {[%clk 0:01:49]} 17. Kh1 {[%clk 0:02:29]}  Nd4 {[%clk 0:01:48]} 18. Nd5 {[%clk 0:02:20]}  Bxd5 {[%clk 0:01:37]} 19. cxd5 {[%clk 0:02:21]}  Nc2 {[%clk 0:01:32]} 20. Nc4 {[%clk 0:02:11]}  Rxc4 {[%clk 0:01:24]} 21. Bd2 {[%clk 0:02:09]}  Qa4 {[%clk 0:01:10]} 22. Bxc4 {[%clk 0:01:25]}  Nxa1 {[%clk 0:01:09]} 23. b3 {[%clk 0:01:09]}  Qxa3 {[%clk 0:01:08]} 24. Bc3 {[%clk 0:01:09]}  b5 {[%clk 0:00:48]} 25. Bxb5 {[%clk 0:01:06]}  Nxb3 {[%clk 0:00:33]} 26. Bxd7 {[%clk 0:01:03]}  Nc5 {[%clk 0:00:34]} 27. Bc6 {[%clk 0:00:59]}  Rb8 {[%clk 0:00:17]} 28. Qa1 {[%clk 0:00:57]}  Qb3 {[%clk 0:00:12]} 29. Kg1 {[%clk 0:00:31]}  h5 {[%clk 0:00:12]} 30. Be1 {[%clk 0:00:20]}  Bg5 {[%clk 0:00:13]} 31. Bf2 {[%clk 0:00:20]}  Nd3 {[%clk 0:00:11]} 32. Qa7 {[%clk 0:00:20]}  Nxf2 {[%clk 0:00:07]} 33. Kxf2 {[%clk 0:00:20]}  Qc2+ {[%clk 0:00:06]} 34. Kg3 {[%clk 0:00:19]}  Rb2 {[%clk 0:00:06]} 35. Rg1 {[%clk 0:00:10]}  Bf4+ {[%clk 0:00:04]} 36. Kh3 {[%clk 0:00:10]}  g5 {[%clk 0:00:04]} 37. Qe7 {[%clk 0:00:06]}  Kg7 {[%clk 0:00:04]} 38. Be8 {[%clk 0:00:05]}  g4+ {[%clk 0:00:02]} 39. Kh4 {[%clk 0:00:05]}  Qf2+ {[%clk 0:00:01]} 40. Kxh5 {[%clk 0:00:06]}  gxf3 {[%clk 0:00:01]} 41. Qxf7+ {[%clk 0:00:06]}  Kh8 {[%clk 0:00:01]} 42. Qf6+ {[%clk 0:00:06]}  Kg8 {[%clk 0:00:02]} 43. Bf7+ {[%clk 0:00:07]}  Kf8 {[%clk 0:00:02]} 44. Be6+ {[%clk 0:00:08]}  Ke8 {[%clk 0:00:02]} 45. Qf7+ {[%clk 0:00:08]}  Kd8 {[%clk 0:00:03]} 46. Qd7# {[%clk 0:00:09]} 1-0


[Site "https://www.chess.com"]

[Event "Titled Tuesday Blitz June 28 Early 2022"]
[White "Tatarinov, Dmitry"]
[Black "Sevian, Samuel"]
[WhiteFideId "24160067"]
[BlackFideId "2040506"]
[WhiteElo "2302"]
[BlackElo "2692"]
[Result "0-1"]
[Round "07"]
[TimeControl "180+1"]
[Date "2022.06.28"]
[WhiteClock "0:02:43"]
[BlackClock "0:02:51"]

1. e4 {[%clk 0:03:00]}  Nf6 {[%clk 0:02:55]} 2. Nc3 {[%clk 0:02:58]}  e5 {[%clk 0:02:53]} 3. Nf3 {[%clk 0:02:58]}  Bb4 {[%clk 0:02:52]} 4. Nxe5 {[%clk 0:02:50]}  O-O {[%clk 0:02:52]} 5. Nd3 {[%clk 0:02:49]}  Bxc3 {[%clk 0:02:51]} 6. dxc3 {[%clk 0:02:48]}  Nxe4 {[%clk 0:02:52]} 7. Be2 {[%clk 0:02:49]}  Re8 {[%clk 0:02:51]} 8. O-O {[%clk 0:02:47]}  d6 {[%clk 0:02:52]} 9. c4 {[%clk 0:02:44]}  Nd7 {[%clk 0:02:52]} 10. b3 {[%clk 0:02:43]}  Nc3 {[%clk 0:02:51]} 0-1


[Site "https://www.chess.com"]

[Event "Titled Tuesday Blitz June 28 Early 2022"]
[White "Terrieux, Kevin"]
[Black "Daeschler, Florian"]
[WhiteFideId "622591"]
[BlackFideId "20678193"]
[WhiteElo "2482"]
[BlackElo "2221"]
[Result "1/2-1/2"]
[Round "07"]
[TimeControl "180+1"]
[Date "2022.06.28"]
[WhiteClock "0:00:04"]
[BlackClock "0:00:05"]

1. d4 {[%clk 0:03:00]}  d5 {[%clk 0:02:59]} 2. e4 {[%clk 0:03:00]}  dxe4 {[%clk 0:02:58]} 3. Nc3 {[%clk 0:03:01]}  Nf6 {[%clk 0:02:58]} 4. f3 {[%clk 0:03:01]}  exf3 {[%clk 0:02:57]} 5. Nxf3 {[%clk 0:03:02]}  c5 {[%clk 0:02:57]} 6. d5 {[%clk 0:03:01]}  a6 {[%clk 0:02:56]} 7. Bg5 {[%clk 0:02:44]}  e6 {[%clk 0:02:54]} 8. dxe6 {[%clk 0:02:35]}  Qxd1+ {[%clk 0:02:52]} 9. Rxd1 {[%clk 0:02:35]}  Bxe6 {[%clk 0:02:52]} 10. Bxf6 {[%clk 0:02:33]}  gxf6 {[%clk 0:02:51]} 11. Ne4 {[%clk 0:02:30]}  Be7 {[%clk 0:02:51]} 12. Nd6+ {[%clk 0:02:30]}  Bxd6 {[%clk 0:02:50]} 13. Rxd6 {[%clk 0:02:31]}  Ke7 {[%clk 0:02:50]} 14. Rd2 {[%clk 0:02:29]}  Nc6 {[%clk 0:02:50]} 15. a3 {[%clk 0:02:20]}  Ne5 {[%clk 0:02:46]} 16. Be2 {[%clk 0:02:16]}  Rhg8 {[%clk 0:02:44]} 17. g3 {[%clk 0:02:14]}  Rad8 {[%clk 0:02:43]} 18. Rf1 {[%clk 0:02:08]}  Bh3 {[%clk 0:02:36]} 19. Rg1 {[%clk 0:02:01]}  Rge8 {[%clk 0:02:19]} 20. Nh4 {[%clk 0:01:49]}  Be6 {[%clk 0:02:02]} 21. Rxd8 {[%clk 0:01:43]}  Rxd8 {[%clk 0:02:03]} 22. Rf1 {[%clk 0:01:43]}  b5 {[%clk 0:01:57]} 23. Nf5+ {[%clk 0:01:37]}  Bxf5 {[%clk 0:01:56]} 24. Rxf5 {[%clk 0:01:37]}  Rd4 {[%clk 0:01:40]} 25. Rh5 {[%clk 0:01:31]}  c4 {[%clk 0:01:14]} 26. Rxh7 {[%clk 0:01:28]}  a5 {[%clk 0:01:14]} 27. h4 {[%clk 0:01:21]}  b4 {[%clk 0:01:13]} 28. axb4 {[%clk 0:01:21]}  axb4 {[%clk 0:01:13]} 29. Rh8 {[%clk 0:01:04]}  c3 {[%clk 0:01:13]} 30. bxc3 {[%clk 0:01:01]}  bxc3 {[%clk 0:01:12]} 31. Rc8 {[%clk 0:01:01]}  f5 {[%clk 0:00:54]} 32. Rxc3 {[%clk 0:00:55]}  f4 {[%clk 0:00:54]} 33. h5 {[%clk 0:00:54]}  Re4 {[%clk 0:00:50]} 34. gxf4 {[%clk 0:00:52]}  Rxf4 {[%clk 0:00:48]} 35. Re3 {[%clk 0:00:51]}  Kf6 {[%clk 0:00:46]} 36. Rh3 {[%clk 0:00:47]}  Kg7 {[%clk 0:00:42]} 37. Kd2 {[%clk 0:00:30]}  Kh6 {[%clk 0:00:41]} 38. Ke3 {[%clk 0:00:27]}  Ra4 {[%clk 0:00:34]} 39. Rh1 {[%clk 0:00:26]}  f5 {[%clk 0:00:32]} 40. Rf1 {[%clk 0:00:25]}  Re4+ {[%clk 0:00:22]} 41. Kd2 {[%clk 0:00:22]}  Kg5 {[%clk 0:00:22]} 42. Rh1 {[%clk 0:00:19]}  Kh6 {[%clk 0:00:20]} 43. Rc1 {[%clk 0:00:15]}  Ng4 {[%clk 0:00:19]} 44. c4 {[%clk 0:00:15]}  Kxh5 {[%clk 0:00:18]} 45. c5 {[%clk 0:00:14]}  Re7 {[%clk 0:00:17]} 46. c6 {[%clk 0:00:14]}  Rc7 {[%clk 0:00:17]} 47. Kd3 {[%clk 0:00:13]}  Kg5 {[%clk 0:00:15]} 48. Kd4 {[%clk 0:00:10]}  Nf6 {[%clk 0:00:14]} 49. Ke5 {[%clk 0:00:08]}  Ne4 {[%clk 0:00:12]} 50. Bd3 {[%clk 0:00:07]}  Re7+ {[%clk 0:00:11]} 51. Kd5 {[%clk 0:00:06]}  Rc7 {[%clk 0:00:11]} 52. Bxe4 {[%clk 0:00:05]}  fxe4 {[%clk 0:00:11]} 53. Kd6 {[%clk 0:00:05]}  Rc8 {[%clk 0:00:10]} 54. Ke5 {[%clk 0:00:05]}  e3 {[%clk 0:00:09]} 55. c7 {[%clk 0:00:04]}  e2 {[%clk 0:00:09]} 56. Ke4 {[%clk 0:00:03]}  Rxc7 {[%clk 0:00:08]} 57. Rg1+ {[%clk 0:00:03]}  Kf6 {[%clk 0:00:06]} 58. Kf3 {[%clk 0:00:04]}  Re7 {[%clk 0:00:06]} 59. Re1 {[%clk 0:00:03]}  Kf7 {[%clk 0:00:05]} 60. Rxe2 {[%clk 0:00:04]}  Rxe2 {[%clk 0:00:05]} 61. Kxe2 {[%clk 0:00:04]} 1/2-1/2


[Site "https://www.chess.com"]

[Event "Titled Tuesday Blitz June 28 Early 2022"]
[White "Timofeev, Artyom"]
[Black "Starozhilov, Leonid"]
[WhiteFideId "4140419"]
[BlackFideId "14106752"]
[WhiteElo "2578"]
[BlackElo "2414"]
[Result "1-0"]
[Round "07"]
[TimeControl "180+1"]
[Date "2022.06.28"]
[WhiteClock "0:00:18"]
[BlackClock "0:00:01"]

1. e4 {[%clk 0:03:00]}  g6 {[%clk 0:02:59]} 2. d4 {[%clk 0:03:00]}  Bg7 {[%clk 0:02:59]} 3. Nc3 {[%clk 0:03:00]}  d6 {[%clk 0:02:59]} 4. Be3 {[%clk 0:03:00]}  a6 {[%clk 0:03:00]} 5. h4 {[%clk 0:02:58]}  h5 {[%clk 0:02:57]} 6. Nf3 {[%clk 0:02:57]}  Bg4 {[%clk 0:02:55]} 7. Be2 {[%clk 0:02:56]}  Bxf3 {[%clk 0:02:55]} 8. Bxf3 {[%clk 0:02:56]}  Nc6 {[%clk 0:02:55]} 9. Ne2 {[%clk 0:02:50]}  Nf6 {[%clk 0:02:55]} 10. Qd2 {[%clk 0:02:48]}  Qd7 {[%clk 0:02:44]} 11. O-O-O {[%clk 0:02:46]}  O-O {[%clk 0:02:27]} 12. Kb1 {[%clk 0:02:39]}  e5 {[%clk 0:02:14]} 13. d5 {[%clk 0:02:36]}  Ne7 {[%clk 0:02:14]} 14. c4 {[%clk 0:02:20]}  b6 {[%clk 0:01:50]} 15. Nc3 {[%clk 0:02:15]}  Kh7 {[%clk 0:01:43]} 16. Be2 {[%clk 0:02:12]}  Neg8 {[%clk 0:01:43]} 17. f3 {[%clk 0:02:09]}  Bh6 {[%clk 0:01:42]} 18. Bg5 {[%clk 0:02:08]}  Kg7 {[%clk 0:01:24]} 19. Rdg1 {[%clk 0:01:58]}  Bxg5 {[%clk 0:01:09]} 20. hxg5 {[%clk 0:01:56]}  Nh7 {[%clk 0:01:10]} 21. g4 {[%clk 0:01:56]}  h4 {[%clk 0:01:00]} 22. Rxh4 {[%clk 0:01:35]}  Qe7 {[%clk 0:00:59]} 23. Rgh1 {[%clk 0:01:35]}  Nxg5 {[%clk 0:00:59]} 24. Nd1 {[%clk 0:01:35]}  Qf6 {[%clk 0:00:49]} 25. Nf2 {[%clk 0:01:06]}  Rfb8 {[%clk 0:00:16]} 26. R4h2 {[%clk 0:00:47]}  b5 {[%clk 0:00:15]} 27. Nh3 {[%clk 0:00:42]}  Nxh3 {[%clk 0:00:14]} 28. Rxh3 {[%clk 0:00:42]}  Qf4 {[%clk 0:00:15]} 29. Qxf4 {[%clk 0:00:39]}  exf4 {[%clk 0:00:15]} 30. g5 {[%clk 0:00:40]}  bxc4 {[%clk 0:00:10]} 31. Bxc4 {[%clk 0:00:40]}  Rb4 {[%clk 0:00:10]} 32. b3 {[%clk 0:00:40]}  a5 {[%clk 0:00:10]} 33. a3 {[%clk 0:00:39]}  Rb6 {[%clk 0:00:06]} 34. Kc2 {[%clk 0:00:37]}  Rc8 {[%clk 0:00:04]} 35. Rh7+ {[%clk 0:00:30]}  Kf8 {[%clk 0:00:04]} 36. R1h4 {[%clk 0:00:31]}  Re8 {[%clk 0:00:03]} 37. Rxf4 {[%clk 0:00:30]}  Re7 {[%clk 0:00:04]} 38. Kd3 {[%clk 0:00:22]}  Rb8 {[%clk 0:00:04]} 39. Rfh4 {[%clk 0:00:22]}  Re5 {[%clk 0:00:03]} 40. f4 {[%clk 0:00:22]}  Re7 {[%clk 0:00:04]} 41. f5 {[%clk 0:00:21]}  Rbe8 {[%clk 0:00:01]} 42. fxg6 {[%clk 0:00:18]}  Re5 {[%clk 0:00:01]} 1-0


[Site "https://www.chess.com"]

[Event "Titled Tuesday Blitz June 28 Early 2022"]
[White "Vachier-Lagrave, Maxime"]
[Black "Gormally, Daniel W"]
[WhiteFideId "623539"]
[BlackFideId "406465"]
[WhiteElo "2813"]
[BlackElo "2543"]
[Result "1-0"]
[Round "07"]
[TimeControl "180+1"]
[Date "2022.06.28"]
[WhiteClock "0:01:26"]
[BlackClock "0:00:54"]

1. e4 {[%clk 0:03:00]}  c5 {[%clk 0:03:00]} 2. Nf3 {[%clk 0:02:56]}  d6 {[%clk 0:03:00]} 3. d4 {[%clk 0:02:56]}  cxd4 {[%clk 0:03:01]} 4. Nxd4 {[%clk 0:02:57]}  Nf6 {[%clk 0:03:01]} 5. Nc3 {[%clk 0:02:58]}  Nc6 {[%clk 0:03:02]} 6. g3 {[%clk 0:02:55]}  Bg4 {[%clk 0:02:59]} 7. f3 {[%clk 0:02:52]}  Bd7 {[%clk 0:02:59]} 8. Be3 {[%clk 0:02:46]}  g6 {[%clk 0:02:57]} 9. Qd2 {[%clk 0:02:46]}  Bg7 {[%clk 0:02:57]} 10. O-O-O {[%clk 0:02:37]}  Rc8 {[%clk 0:02:57]} 11. Kb1 {[%clk 0:02:37]}  Qa5 {[%clk 0:02:56]} 12. Nb3 {[%clk 0:02:34]}  Qc7 {[%clk 0:02:55]} 13. g4 {[%clk 0:02:33]}  h5 {[%clk 0:02:49]} 14. g5 {[%clk 0:02:33]}  Nh7 {[%clk 0:02:50]} 15. Nd5 {[%clk 0:02:34]}  Qb8 {[%clk 0:02:45]} 16. h4 {[%clk 0:02:31]}  Be6 {[%clk 0:02:35]} 17. f4 {[%clk 0:02:28]}  Bg4 {[%clk 0:02:31]} 18. Be2 {[%clk 0:02:26]}  Bxe2 {[%clk 0:02:30]} 19. Qxe2 {[%clk 0:02:27]}  e6 {[%clk 0:02:29]} 20. Nc3 {[%clk 0:02:15]}  Bxc3 {[%clk 0:02:29]} 21. bxc3 {[%clk 0:02:16]}  O-O {[%clk 0:02:29]} 22. f5 {[%clk 0:02:13]}  exf5 {[%clk 0:02:24]} 23. exf5 {[%clk 0:02:13]}  Ne5 {[%clk 0:02:19]} 24. fxg6 {[%clk 0:02:10]}  fxg6 {[%clk 0:02:16]} 25. Bd4 {[%clk 0:02:10]}  Qc7 {[%clk 0:02:13]} 26. Rhf1 {[%clk 0:02:03]}  Rxf1 {[%clk 0:02:09]} 27. Rxf1 {[%clk 0:02:03]}  Qc4 {[%clk 0:02:09]} 28. Qg2 {[%clk 0:02:02]}  Nf8 {[%clk 0:01:56]} 29. Nd2 {[%clk 0:01:56]}  Qb5+ {[%clk 0:01:50]} 30. Ka1 {[%clk 0:01:56]}  Qc6 {[%clk 0:01:46]} 31. Ne4 {[%clk 0:01:55]}  Nfd7 {[%clk 0:01:46]} 32. Bxe5 {[%clk 0:01:51]}  dxe5 {[%clk 0:01:31]} 33. Rd1 {[%clk 0:01:47]}  Nc5 {[%clk 0:01:21]} 34. Nf6+ {[%clk 0:01:45]}  Kg7 {[%clk 0:01:15]} 35. Qf1 {[%clk 0:01:38]}  Rc7 {[%clk 0:01:08]} 36. Qc4 {[%clk 0:01:30]}  Ne6 {[%clk 0:00:55]} 37. Qxc6 {[%clk 0:01:27]}  bxc6 {[%clk 0:00:54]} 38. Ne8+ {[%clk 0:01:26]} 1-0


[Site "https://www.chess.com"]

[Event "Titled Tuesday Blitz June 28 Early 2022"]
[White "Weishaeutel, Moritz"]
[Black "Samunenkov, Ihor"]
[WhiteFideId "12967300"]
[BlackFideId "14187086"]
[WhiteElo "2002"]
[BlackElo "2409"]
[Result "0-1"]
[Round "07"]
[TimeControl "180+1"]
[Date "2022.06.28"]
[WhiteClock "0:00:01"]
[BlackClock "0:00:45"]

1. e4 {[%clk 0:03:00]}  c5 {[%clk 0:02:59]} 2. b4 {[%clk 0:03:01]}  cxb4 {[%clk 0:02:57]} 3. a3 {[%clk 0:03:02]}  d5 {[%clk 0:02:58]} 4. exd5 {[%clk 0:03:02]}  Qxd5 {[%clk 0:02:59]} 5. Nf3 {[%clk 0:03:03]}  e5 {[%clk 0:02:57]} 6. axb4 {[%clk 0:03:02]}  Bxb4 {[%clk 0:02:57]} 7. c3 {[%clk 0:03:02]}  Be7 {[%clk 0:02:57]} 8. Na3 {[%clk 0:03:02]}  e4 {[%clk 0:02:32]} 9. Nb5 {[%clk 0:02:46]}  Qd8 {[%clk 0:02:08]} 10. Qa4 {[%clk 0:02:34]}  Nc6 {[%clk 0:01:57]} 11. Ne5 {[%clk 0:02:09]}  Nf6 {[%clk 0:01:50]} 12. Nxc6 {[%clk 0:02:03]}  bxc6 {[%clk 0:01:51]} 13. Nd4 {[%clk 0:02:04]}  Bd7 {[%clk 0:01:44]} 14. Nxc6 {[%clk 0:01:55]}  Qc7 {[%clk 0:01:38]} 15. Bb5 {[%clk 0:01:53]}  Bd6 {[%clk 0:01:29]} 16. Nd4 {[%clk 0:01:44]}  O-O {[%clk 0:01:24]} 17. Bxd7 {[%clk 0:01:40]}  Nxd7 {[%clk 0:01:25]} 18. Nb5 {[%clk 0:01:12]}  Qc6 {[%clk 0:01:24]} 19. Nxd6 {[%clk 0:01:07]}  Qxd6 {[%clk 0:01:23]} 20. Ba3 {[%clk 0:01:07]}  Nc5 {[%clk 0:01:14]} 21. Bxc5 {[%clk 0:01:08]}  Qxc5 {[%clk 0:01:14]} 22. O-O {[%clk 0:01:08]}  Qd5 {[%clk 0:01:13]} 23. Rad1 {[%clk 0:00:50]}  a5 {[%clk 0:01:13]} 24. Rfe1 {[%clk 0:00:50]}  f5 {[%clk 0:01:10]} 25. Re3 {[%clk 0:00:47]}  Rfc8 {[%clk 0:01:09]} 26. h4 {[%clk 0:00:13]}  Rc4 {[%clk 0:01:06]} 27. Qa2 {[%clk 0:00:13]}  Rd8 {[%clk 0:00:54]} 28. d3 {[%clk 0:00:13]}  Rxc3 {[%clk 0:00:53]} 29. dxe4 {[%clk 0:00:10]}  Qxa2 {[%clk 0:00:53]} 30. Rxd8+ {[%clk 0:00:11]}  Kf7 {[%clk 0:00:54]} 31. Re1 {[%clk 0:00:06]}  fxe4 {[%clk 0:00:53]} 32. Rd7+ {[%clk 0:00:06]}  Kf8 {[%clk 0:00:51]} 33. Rd4 {[%clk 0:00:06]}  Rc4 {[%clk 0:00:49]} 34. Rd5 {[%clk 0:00:05]}  a4 {[%clk 0:00:49]} 35. Rf5+ {[%clk 0:00:05]}  Kg8 {[%clk 0:00:50]} 36. f3 {[%clk 0:00:05]}  a3 {[%clk 0:00:50]} 37. fxe4 {[%clk 0:00:05]}  Qd2 {[%clk 0:00:49]} 38. Rb1 {[%clk 0:00:05]}  h6 {[%clk 0:00:48]} 39. Rb8+ {[%clk 0:00:03]}  Kh7 {[%clk 0:00:48]} 40. Rf6 {[%clk 0:00:03]}  Qe1+ {[%clk 0:00:46]} 41. Rf1 {[%clk 0:00:03]}  Qxh4 {[%clk 0:00:47]} 42. Rb7 {[%clk 0:00:02]}  a2 {[%clk 0:00:47]} 43. Ra1 {[%clk 0:00:02]}  Rc2 {[%clk 0:00:47]} 44. Rxa2 {[%clk 0:00:02]}  Rxa2 {[%clk 0:00:46]} 45. Rb4 {[%clk 0:00:01]}  Qf2+ {[%clk 0:00:45]} 0-1


[Site "https://www.chess.com"]